Workbook

Sheet DIN A4
O1: REPROGRAFIA, S. G. C. | AP1: REPROGRAFIA, S. G. C.
O2: ORDEN DE TRABAJO | AP2: ORDEN DE TRABAJO
A5: PETICIONARIO | AB5: PETICIONARIO | BB5: INDICAR LA NUMERACION A MANO SOLO EN LA PRIMERA OT
A9: DEPARTAMENTO | AB9: DEPARTAMENTO
A13: TRABAJO A REALIZAR | W13: UNIDADES | AB13: TRABAJO A REALIZAR | AX13: UNIDADES
A17: DENOMINACION OBRA O PROYECTO | AB17: DENOMINACION OBRA O PROYECTO
A21: CODIGO | AB21: CODIGO
A25: FECHA ENTRADA | P25: FIRMA | AB25: FECHA ENTRADA | AQ25: FIRMA
J27: Nº | L27: 200000 | AK27: Nº | AM27: 200050
A38: CONCEPTO | G38: UNIDADES | O38: CONCEPTO | V38: UNIDADES | AB38: CONCEPTO | AH38: UNIDADES | AP38: CONCEPTO | AW38: UNIDADES
A41: NOTAS | AB41: NOTAS
A42: CADA ORDEN PUEDE CONTENER VARIOS TRABAJOS, PERO UN SOLO CARGO | AB42: CADA ORDEN PUEDE CONTENER VARIOS TRABAJOS, PERO UN SOLO CARGO
A43: NO RELLENAR LOS ESPACIOS CON FONDO | S43: FECHA ACABADO | AB43: NO RELLENAR LOS ESPACIOS CON FONDO | AT43: FECHA ACABADO
A45: MOD. 106 | AB45: MOD. 106
O47: REPROGRAFIA, S. G. C. | AP47: REPROGRAFIA, S. G. C.
O48: ORDEN DE TRABAJO | AP48: ORDEN DE TRABAJO
A51: PETICIONARIO | AB51: PETICIONARIO
A55: DEPARTAMENTO | AB55: DEPARTAMENTO
A59: TRABAJO A REALIZAR | W59: UNIDADES | AB59: TRABAJO A REALIZAR | AX59: UNIDADES
A63: DENOMINACION OBRA O PROYECTO | AB63: DENOMINACION OBRA O PROYECTO
A67: CODIGO | AB67: CODIGO
A71: FECHA ENTRADA | P71: FIRMA | AB71: FECHA ENTRADA | AQ71: FIRMA
J73: Nº | L73: =L27+1 -> 200001 | AK73: Nº | AM73: =AM27+1 -> 200051
A84: CONCEPTO | G84: UNIDADES | O84: CONCEPTO | V84: UNIDADES | AB84: CONCEPTO | AH84: UNIDADES | AP84: CONCEPTO | AW84: UNIDADES
A87: NOTAS | AB87: NOTAS
A88: CADA ORDEN PUEDE CONTENER VARIOS TRABAJOS, PERO UN SOLO CARGO | AB88: CADA ORDEN PUEDE CONTENER VARIOS TRABAJOS, PERO UN SOLO CARGO
A89: NO RELLENAR LOS ESPACIOS CON FONDO | AB89: NO RELLENAR LOS ESPACIOS CON FONDO
S90: FECHA ACABADO | AT90: FECHA ACABADO
A91: MOD. 106 | AB91: MOD. 106
O93: REPROGRAFIA, S. G. C. | AP93: REPROGRAFIA, S. G. C.
O94: ORDEN DE TRABAJO | AP94: ORDEN DE TRABAJO
A97: PETICIONARIO | AB97: PETICIONARIO
A101: DEPARTAMENTO | AB101: DEPARTAMENTO
A105: TRABAJO A REALIZAR | W105: UNIDADES | AB105: TRABAJO A REALIZAR | AX105: UNIDADES
A109: DENOMINACION OBRA O PROYECTO | AB109: DENOMINACION OBRA O PROYECTO
A113: CODIGO | AB113: CODIGO
A117: FECHA ENTRADA | P117: FIRMA | AB117: FECHA ENTRADA | AQ117: FIRMA
J119: Nº | L119: =L73+1 -> 200002 | AK119: Nº | AM119: =AM73+1 -> 200052
A130: CONCEPTO | G130: UNIDADES | O130: CONCEPTO | V130: UNIDADES | AB130: CONCEPTO | AH130: UNIDADES | AP130: CONCEPTO | AW130: UNIDADES
A133: NOTAS | AB133: NOTAS
A134: CADA ORDEN PUEDE CONTENER VARIOS TRABAJOS, PERO UN SOLO CARGO | AB134: CADA ORDEN PUEDE CONTENER VARIOS TRABAJOS, PERO UN SOLO CARGO
A135: NO RELLENAR LOS ESPACIOS CON FONDO | AB135: NO RELLENAR LOS ESPACIOS CON FONDO
S136: FECHA ACABADO | AT136: FECHA ACABADO
A137: MOD. 106 | AB137: MOD. 106
O139: REPROGRAFIA, S. G. C. | AP139: REPROGRAFIA, S. G. C.
O140: ORDEN DE TRABAJO | AP140: ORDEN DE TRABAJO
A143: PETICIONARIO | AB143: PETICIONARIO
A147: DEPARTAMENTO | AB147: DEPARTAMENTO
A151: TRABAJO A REALIZAR | W151: UNIDADES | AB151: TRABAJO A REALIZAR | AX151: UNIDADES
A155: DENOMINACION OBRA O PROYECTO | AB155: DENOMINACION OBRA O PROYECTO
A159: CODIGO | AB159: CODIGO
A163: FECHA ENTRADA | P163: FIRMA | AB163: FECHA ENTRADA | AQ163: FIRMA
J165: Nº | L165: =L119+1 -> 200003 | AK165: Nº | AM165: =AM119+1 -> 200053
A176: CONCEPTO | G176: UNIDADES | O176: CONCEPTO | V176: UNIDADES | AB176: CONCEPTO | AH176: UNIDADES | AP176: CONCEPTO | AW176: UNIDADES
A179: NOTAS | AB179: NOTAS
A180: CADA ORDEN PUEDE CONTENER VARIOS TRABAJOS, PERO UN SOLO CARGO | AB180: CADA ORDEN PUEDE CONTENER VARIOS TRABAJOS, PERO UN SOLO CARGO
A181: NO RELLENAR LOS ESPACIOS CON FONDO | AB181: NO RELLENAR LOS ESPACIOS CON FONDO
S182: FECHA ACABADO | AT182: FECHA ACABADO
A183: MOD. 106 | AB183: MOD. 106
O185: REPROGRAFIA, S. G. C. | AP185: REPROGRAFIA, S. G. C.
O186: ORDEN DE TRABAJO | AP186: ORDEN DE TRABAJO
A189: PETICIONARIO | AB189: PETICIONARIO
A193: DEPARTAMENTO | AB193: DEPARTAMENTO
A197: TRABAJO A REALIZAR | W197: UNIDADES | AB197: TRABAJO A REALIZAR | AX197: UNIDADES
A201: DENOMINACION OBRA O PROYECTO | AB201: DENOMINACION OBRA O PROYECTO
A205: CODIGO | AB205: CODIGO
A209: FECHA ENTRADA | P209: FIRMA | AB209: FECHA ENTRADA | AQ209: FIRMA
J211: Nº | L211: =L165+1 -> 200004 | AK211: Nº | AM211: =AM165+1 -> 200054
A222: CONCEPTO | G222: UNIDADES | O222: CONCEPTO | V222: UNIDADES | AB222: CONCEPTO | AH222: UNIDADES | AP222: CONCEPTO | AW222: UNIDADES
A225: NOTAS | AB225: NOTAS
A226: CADA ORDEN PUEDE CONTENER VARIOS TRABAJOS, PERO UN SOLO CARGO | AB226: CADA ORDEN PUEDE CONTENER VARIOS TRABAJOS, PERO UN SOLO CARGO
A227: NO RELLENAR LOS ESPACIOS CON FONDO | AB227: NO RELLENAR LOS ESPACIOS CON FONDO
S228: FECHA ACABADO | AT228: FECHA ACABADO
A229: MOD. 106 | AB229: MOD. 106
O231: REPROGRAFIA, S. G. C. | AP231: REPROGRAFIA, S. G. C.
O232: ORDEN DE TRABAJO | AP232: ORDEN DE TRABAJO
A235: PETICIONARIO | AB235: PETICIONARIO
A239: DEPARTAMENTO | AB239: DEPARTAMENTO
A243: TRABAJO A REALIZAR | W243: UNIDADES | AB243: TRABAJO A REALIZAR | AX243: UNIDADES
A247: DENOMINACION OBRA O PROYECTO | AB247: DENOMINACION OBRA O PROYECTO
A251: CODIGO | AB251: CODIGO
A255: FECHA ENTRADA | P255: FIRMA | AB255: FECHA ENTRADA | AQ255: FIRMA
J257: Nº | L257: =L211+1 -> 200005 | AK257: Nº | AM257: =AM211+1 -> 200055
A268: CONCEPTO | G268: UNIDADES | O268: CONCEPTO | V268: UNIDADES | AB268: CONCEPTO | AH268: UNIDADES | AP268: CONCEPTO | AW268: UNIDADES
A271: NOTAS | AB271: NOTAS
A272: CADA ORDEN PUEDE CONTENER VARIOS TRABAJOS, PERO UN SOLO CARGO | AB272: CADA ORDEN PUEDE CONTENER VARIOS TRABAJOS, PERO UN SOLO CARGO
A273: NO RELLENAR LOS ESPACIOS CON FONDO | AB273: NO RELLENAR LOS ESPACIOS CON FONDO
S274: FECHA ACABADO | AT274: FECHA ACABADO
A275: MOD. 106 | AB275: MOD. 106
O277: REPROGRAFIA, S. G. C. | AP277: REPROGRAFIA, S. G. C.
O278: ORDEN DE TRABAJO | AP278: ORDEN DE TRABAJO
A281: PETICIONARIO | AB281: PETICIONARIO
A285: DEPARTAMENTO | AB285: DEPARTAMENTO
A289: TRABAJO A REALIZAR | W289: UNIDADES | AB289: TRABAJO A REALIZAR | AX289: UNIDADES
A293: DENOMINACION OBRA O PROYECTO | AB293: DENOMINACION OBRA O PROYECTO
A297: CODIGO | AB297: CODIGO
A301: FECHA ENTRADA | P301: FIRMA | AB301: FECHA ENTRADA | AQ301: FIRMA
J303: Nº | L303: =L257+1 -> 200006 | AK303: Nº | AM303: =AM257+1 -> 200056
A314: CONCEPTO | G314: UNIDADES | O314: CONCEPTO | V314: UNIDADES | AB314: CONCEPTO | AH314: UNIDADES | AP314: CONCEPTO | AW314: UNIDADES
A317: NOTAS | AB317: NOTAS
A318: CADA ORDEN PUEDE CONTENER VARIOS TRABAJOS, PERO UN SOLO CARGO | AB318: CADA ORDEN PUEDE CONTENER VARIOS TRABAJOS, PERO UN SOLO CARGO
A319: NO RELLENAR LOS ESPACIOS CON FONDO | AB319: NO RELLENAR LOS ESPACIOS CON FONDO
S320: FECHA ACABADO | AT320: FECHA ACABADO
A321: MOD. 106 | AB321: MOD. 106
O323: REPROGRAFIA, S. G. C. | AP323: REPROGRAFIA, S. G. C.
O324: ORDEN DE TRABAJO | AP324: ORDEN DE TRABAJO
A327: PETICIONARIO | AB327: PETICIONARIO
A331: DEPARTAMENTO | AB331: DEPARTAMENTO
A335: TRABAJO A REALIZAR | W335: UNIDADES | AB335: TRABAJO A REALIZAR | AX335: UNIDADES
A339: DENOMINACION OBRA O PROYECTO | AB339: DENOMINACION OBRA O PROYECTO
A343: CODIGO | AB343: CODIGO
A347: FECHA ENTRADA | P347: FIRMA | AB347: FECHA ENTRADA | AQ347: FIRMA
J349: Nº | L349: =L303+1 -> 200007 | AK349: Nº | AM349: =AM303+1 -> 200057
A360: CONCEPTO | G360: UNIDADES | O360: CONCEPTO | V360: UNIDADES | AB360: CONCEPTO | AH360: UNIDADES | AP360: CONCEPTO | AW360: UNIDADES
A363: NOTAS | AB363: NOTAS
A364: CADA ORDEN PUEDE CONTENER VARIOS TRABAJOS, PERO UN SOLO CARGO | AB364: CADA ORDEN PUEDE CONTENER VARIOS TRABAJOS, PERO UN SOLO CARGO
A365: NO RELLENAR LOS ESPACIOS CON FONDO | AB365: NO RELLENAR LOS ESPACIOS CON FONDO
S366: FECHA ACABADO | AT366: FECHA ACABADO
A367: MOD. 106 | AB367: MOD. 106
O369: REPROGRAFIA, S. G. C. | AP369: REPROGRAFIA, S. G. C.
O370: ORDEN DE TRABAJO | AP370: ORDEN DE TRABAJO
A373: PETICIONARIO | AB373: PETICIONARIO
A377: DEPARTAMENTO | AB377: DEPARTAMENTO
A381: TRABAJO A REALIZAR | W381: UNIDADES | AB381: TRABAJO A REALIZAR | AX381: UNIDADES
A385: DENOMINACION OBRA O PROYECTO | AB385: DENOMINACION OBRA O PROYECTO
A389: CODIGO | AB389: CODIGO
A393: FECHA ENTRADA | P393: FIRMA | AB393: FECHA ENTRADA | AQ393: FIRMA
J395: Nº | L395: =L349+1 -> 200008 | AK395: Nº | AM395: =AM349+1 -> 200058
A406: CONCEPTO | G406: UNIDADES | O406: CONCEPTO | V406: UNIDADES | AB406: CONCEPTO | AH406: UNIDADES | AP406: CONCEPTO | AW406: UNIDADES
A409: NOTAS | AB409: NOTAS
A410: CADA ORDEN PUEDE CONTENER VARIOS TRABAJOS, PERO UN SOLO CARGO | AB410: CADA ORDEN PUEDE CONTENER VARIOS TRABAJOS, PERO UN SOLO CARGO
A411: NO RELLENAR LOS ESPACIOS CON FONDO | AB411: NO RELLENAR LOS ESPACIOS CON FONDO
S412: FECHA ACABADO | AT412: FECHA ACABADO
A413: MOD. 106 | AB413: MOD. 106
O415: REPROGRAFIA, S. G. C. | AP415: REPROGRAFIA, S. G. C.
O416: ORDEN DE TRABAJO | AP416: ORDEN DE TRABAJO
A419: PETICIONARIO | AB419: PETICIONARIO
A423: DEPARTAMENTO | AB423: DEPARTAMENTO
A427: TRABAJO A REALIZAR | W427: UNIDADES | AB427: TRABAJO A REALIZAR | AX427: UNIDADES
A431: DENOMINACION OBRA O PROYECTO | AB431: DENOMINACION OBRA O PROYECTO
A435: CODIGO | AB435: CODIGO
A439: FECHA ENTRADA | P439: FIRMA | AB439: FECHA ENTRADA | AQ439: FIRMA
J441: Nº | L441: =L395+1 -> 200009 | AK441: Nº | AM441: =AM395+1 -> 200059
A452: CONCEPTO | G452: UNIDADES | O452: CONCEPTO | V452: UNIDADES | AB452: CONCEPTO | AH452: UNIDADES | AP452: CONCEPTO | AW452: UNIDADES
A455: NOTAS | AB455: NOTAS
A456: CADA ORDEN PUEDE CONTENER VARIOS TRABAJOS, PERO UN SOLO CARGO | AB456: CADA ORDEN PUEDE CONTENER VARIOS TRABAJOS, PERO UN SOLO CARGO
A457: NO RELLENAR LOS ESPACIOS CON FONDO | AB457: NO RELLENAR LOS ESPACIOS CON FONDO
S458: FECHA ACABADO | AT458: FECHA ACABADO
A459: MOD. 106 | AB459: MOD. 106
O461: REPROGRAFIA, S. G. C. | AP461: REPROGRAFIA, S. G. C.
O462: ORDEN DE TRABAJO | AP462: ORDEN DE TRABAJO
A465: PETICIONARIO | AB465: PETICIONARIO
A469: DEPARTAMENTO | AB469: DEPARTAMENTO
A473: TRABAJO A REALIZAR | W473: UNIDADES | AB473: TRABAJO A REALIZAR | AX473: UNIDADES
A477: DENOMINACION OBRA O PROYECTO | AB477: DENOMINACION OBRA O PROYECTO
A481: CODIGO | AB481: CODIGO
A485: FECHA ENTRADA | P485: FIRMA | AB485: FECHA ENTRADA | AQ485: FIRMA
J487: Nº | L487: =L441+1 -> 200010 | AK487: Nº | AM487: =AM441+1 -> 200060
A498: CONCEPTO | G498: UNIDADES | O498: CONCEPTO | V498: UNIDADES | AB498: CONCEPTO | AH498: UNIDADES | AP498: CONCEPTO | AW498: UNIDADES
A501: NOTAS | AB501: NOTAS
A502: CADA ORDEN PUEDE CONTENER VARIOS TRABAJOS, PERO UN SOLO CARGO | AB502: CADA ORDEN PUEDE CONTENER VARIOS TRABAJOS, PERO UN SOLO CARGO
A503: NO RELLENAR LOS ESPACIOS CON FONDO | AB503: NO RELLENAR LOS ESPACIOS CON FONDO
S504: FECHA ACABADO | AT504: FECHA ACABADO
A505: MOD. 106 | AB505: MOD. 106
O507: REPROGRAFIA, S. G. C. | AP507: REPROGRAFIA, S. G. C.
O508: ORDEN DE TRABAJO | AP508: ORDEN DE TRABAJO
A511: PETICIONARIO | AB511: PETICIONARIO
A515: DEPARTAMENTO | AB515: DEPARTAMENTO
A519: TRABAJO A REALIZAR | W519: UNIDADES | AB519: TRABAJO A REALIZAR | AX519: UNIDADES
A523: DENOMINACION OBRA O PROYECTO | AB523: DENOMINACION OBRA O PROYECTO
A527: CODIGO | AB527: CODIGO
A531: FECHA ENTRADA | P531: FIRMA | AB531: FECHA ENTRADA | AQ531: FIRMA
J533: Nº | L533: =L487+1 -> 200011 | AK533: Nº | AM533: =AM487+1 -> 200061
A544: CONCEPTO | G544: UNIDADES | O544: CONCEPTO | V544: UNIDADES | AB544: CONCEPTO | AH544: UNIDADES | AP544: CONCEPTO | AW544: UNIDADES
A547: NOTAS | AB547: NOTAS
A548: CADA ORDEN PUEDE CONTENER VARIOS TRABAJOS, PERO UN SOLO CARGO | AB548: CADA ORDEN PUEDE CONTENER VARIOS TRABAJOS, PERO UN SOLO CARGO
A549: NO RELLENAR LOS ESPACIOS CON FONDO | AB549: NO RELLENAR LOS ESPACIOS CON FONDO
S550: FECHA ACABADO | AT550: FECHA ACABADO
A551: MOD. 106 | AB551: MOD. 106
O553: REPROGRAFIA, S. G. C. | AP553: REPROGRAFIA, S. G. C.
O554: ORDEN DE TRABAJO | AP554: ORDEN DE TRABAJO
A557: PETICIONARIO | AB557: PETICIONARIO
A561: DEPARTAMENTO | AB561: DEPARTAMENTO
A565: TRABAJO A REALIZAR | W565: UNIDADES | AB565: TRABAJO A REALIZAR | AX565: UNIDADES
A569: DENOMINACION OBRA O PROYECTO | AB569: DENOMINACION OBRA O PROYECTO
A573: CODIGO | AB573: CODIGO
A577: FECHA ENTRADA | P577: FIRMA | AB577: FECHA ENTRADA | AQ577: FIRMA
J579: Nº | L579: =L533+1 -> 200012 | AK579: Nº | AM579: =AM533+1 -> 200062
A590: CONCEPTO | G590: UNIDADES | O590: CONCEPTO | V590: UNIDADES | AB590: CONCEPTO | AH590: UNIDADES | AP590: CONCEPTO | AW590: UNIDADES
A593: NOTAS | AB593: NOTAS
A594: CADA ORDEN PUEDE CONTENER VARIOS TRABAJOS, PERO UN SOLO CARGO | AB594: CADA ORDEN PUEDE CONTENER VARIOS TRABAJOS, PERO UN SOLO CARGO
A595: NO RELLENAR LOS ESPACIOS CON FONDO | AB595: NO RELLENAR LOS ESPACIOS CON FONDO
S596: FECHA ACABADO | AT596: FECHA ACABADO
A597: MOD. 106 | AB597: MOD. 106
O599: REPROGRAFIA, S. G. C. | AP599: REPROGRAFIA, S. G. C.
O600: ORDEN DE TRABAJO | AP600: ORDEN DE TRABAJO
A603: PETICIONARIO | AB603: PETICIONARIO
A607: DEPARTAMENTO | AB607: DEPARTAMENTO
A611: TRABAJO A REALIZAR | W611: UNIDADES | AB611: TRABAJO A REALIZAR | AX611: UNIDADES
A615: DENOMINACION OBRA O PROYECTO | AB615: DENOMINACION OBRA O PROYECTO
... 549 more rows
